Cogmind - Beta 15 @@@ ROGUE MODE // 2025.05.16 @ 19:50:03 Player: OctagonalPrism Result: Destroyed by G-47 Trooper with Particle Gun Performance ------------- Evolutions (2) 1000 Regions Visited (5) 1000 Robots Destroyed (46) 230 Value Destroyed (1040) 1040 Prototype IDs (9) 180 Alien Tech Used (0) 0 Bonus (50) 50 TOTAL SCORE: 3500 Bonus ------- Follower Combat Kills 50 Cogmind --------- Core Integrity 0/550 Matter 300/300 Energy 92/100 System Corruption 0% Temperature Cool (27) Movement Core (400) Ox7 Location -8/Materials Parts ------- > --- POWER (1) -------- (None) > --- PROPULSION (2) --- (None) > --- UTILITY (6) ------ Large Storage Unit Salvage Targeting Computer > --- WEAPON (2) ------- Scythe > --- INVENTORY (15) --- Light Nuclear Core Cesium-ion Thruster Improved Heat Sink Faulty Experimental Sensor Array Signal Interpreter Improved Terrain Scanner Recalibrator Peak State ------------ > --- POWER ------------ Nuclear Core > --- PROPULSION ------- Light Treads Light Treads > --- UTILITY ---------- Large Storage Unit Salvage Targeting Computer Light Armor Plating Hacking Suite Recalibrator > --- WEAPON ----------- Autogun Scythe > --- INVENTORY -------- Light Nuclear Core Cesium-ion Thruster Improved Heat Sink Experimental Sensor Array Signal Interpreter Improved Terrain Scanner [Rating: 23] Favorites ----------- Power Ion Engine Engine Ion Engine Power Core Nuclear Core Propulsion Wheel Treads Light Treads Wheel Wheel Utility Small Storage Unit Device Recalibrator Storage Small Storage Unit Processor Salvage Targeting Computer Hackware Hacking Suite Protection Light Armor Plating Weapon Autogun Energy Gun Medium Laser Ballistic Gun Autogun Slashing Weapon Scythe Build | -11 -10 -10 -10 -9 -8 ------- Run | Yrd Mat Min Exi Min Mat Slots Evolved 4 | . . . . . 4 Power . | . . . . . . Propulsion . | . . . . . . Utility 4 | . . . . . 4 Weapon . | . . . . . . Parts Attached 26 | 7 6 1 . 2 10 Power 4 | 2 . 1 . . 1 Engine 3 | 2 . 1 . . . Core 1 | . . . . . 1 Reactor . | . . . . . . Propulsion 6 | 2 1 . . 2 1 Treads 3 | . 1 . . 1 1 Leg . | . . . . . . Wheel 3 | 2 . . . 1 . Hover . | . . . . . . Flight . | . . . . . . Utility 9 | 1 2 . . . 6 Device 2 | . . . . . 2 Storage 2 | 1 . . . . 1 Processor 2 | . 2 . . . . Hackware 1 | . . . . . 1 Protection 2 | . . . . . 2 Artifact . | . . . . . . Weapon 7 | 2 3 . . . 2 Energy Gun 2 | 1 1 . . . . Energy Cannon . | . . . . . . Ballistic Gun 4 | 1 2 . . . 1 Ballistic Cannon . | . . . . . . Launcher . | . . . . . . Special Weapon . | . . . . . . Impact Weapon . | . . . . . . Slashing Weapon 1 | . . . . . 1 Piercing Weapon . | . . . . . . Special Melee Weapon . | . . . . . . Unidentified Prototypes 1 | . . . . . 1 Parts Lost 11 | . . 1 . . 10 Power 1 | . . . . . 1 Propulsion 4 | . . 1 . . 3 Utility 3 | . . . . . 3 Weapon 3 | . . . . . 3 Highest Loss Streak 6 | . . 1 . . 6 To Critical Strikes . | . . . . . . Average Backups 6 | 3 7 7 7 7 7 Power . | . . . . . . Propulsion 1 | 1 2 1 1 1 1 Utility 3 | . 3 4 4 4 4 Weapon 1 | . 1 2 2 2 1 Tool/Special . | . . . . . . Unused Backups 8 | . 2 . . . 6 Power 1 | . . . . . 1 Propulsion 1 | . . . . . 1 Utility 4 | . 1 . . . 3 Weapon 2 | . 1 . . . 1 Tool/Special . | . . . . . . Average Slot Usage (%) 91 | . 98 99 100 100 75 Engine 10 | . 14 14 14 14 1 Core 2 | . . . . . 6 Treads 10 | . 3 14 14 14 11 Wheel 14 | . 24 13 14 14 5 Device 1 | . . . . . 6 Storage 12 | . 14 14 14 14 9 Processor 11 | . 12 14 14 14 9 Hackware 2 | . . . . . 8 Energy Gun 2 | . 10 . . . . Ballistic Gun 20 | . 17 28 28 28 13 Slashing Weapon 1 | . . . . . 3 Peak Build Rating 23 | 6 11 11 11 12 23 Average Rating 11 | 5 8 10 11 11 19 On Entrance 8 | . 6 11 11 11 12 Naked Turns . | . . . . . . Heaviest Build 37 | 13 16 16 16 16 37 Greatest Support 40 | 20 20 20 10 10 40 Greatest Overweight (x) 7 | . 1 1 1 1 7 Average Overweight (x) . | . . . 1 1 1 Largest Inventory Capacity 15 | 8 8 8 8 8 15 Average Capacity 9 | 7 8 8 8 8 13 Most Carried 9 | 5 8 8 7 8 9 Average Carried 6 | 3 7 7 7 7 7 Final Capacity 15 | 8 8 8 8 8 15 Final Carried 8 | 5 8 7 7 8 7 Class Distribution -------------------- 100% | Mutant Dominant Class ---------------- Mutant | -10/Materials Mutant | -10/Mines Mutant | -10/Exiles Mutant | -9/Mines Mutant | -8/Materials Resources | -11 -10 -10 -10 -9 -8 ----------- Run | Yrd Mat Min Exi Min Mat Matter Collected 1070 | 329 165 198 . 142 236 Remotely . | . . . . . . Salvage Created 1444 | 181 293 339 . 159 472 Parts 98 | 18 25 26 . 5 24 Haulers Intercepted 1 | . 1 . . . . Recyclers Shooed . | . . . . . . Parts Field Recycled . | . . . . . . Retrieved Matter . | . . . . . . Parts Self-Destructed . | . . . . . . Prevented . | . . . . . . Kills | -11 -10 -10 -10 -9 -8 ------- Run | Yrd Mat Min Exi Min Mat Combat Hostiles Destroyed 30 | . 6 13 . 3 8 Melee 6 | . . . . . 6 Guns 24 | . 6 13 . 3 2 Classes Destroyed 9 | 1 5 . . 1 2 Builder 1 | . . . . . 1 Tunneler 10 | 9 . . . . 1 Hauler 1 | . 1 . . . . Operator 3 | . 1 . . . 2 Watcher 1 | . 1 . . . . Swarmer 11 | . 2 9 . . . Grunt 17 | . 4 4 . 2 7 Brawler 1 | . . . . 1 . Sentry 1 | . . . . . 1 Best Kill Streak 4 | 3 3 4 . 2 4 Combat Bots Only 4 | . 3 4 . 2 2 Max Kills in Single Turn 2 | 1 1 2 . 1 1 Gunslinging 1 | . . 1 . . . Exploded . | . . . . . . Melee 1 | . . . . . 1 Uniques/NPCs Destroyed . | . . . . . . Combat | -11 -10 -10 -10 -9 -8 -------- Run | Yrd Mat Min Exi Min Mat Hostile Shots Fired 187 | . 12 45 . 14 116 Missed 41 | . 2 12 . 6 21 Hits 146 | . 10 33 . 8 95 Projectile 146 | . 10 33 . 8 95 Critical Strikes 9 | . . 1 . 1 7 Damage Taken 2061 | . 106 331 . 94 1530 Core 634 | . 34 50 . . 550 Absorbed by Shields . | . . . . . . Regen/Repaired (Parts) 11 | . . . . . 11 Core Remaining (%) 83 | 100 . . . 66 . Volleys Fired 106 | 28 19 24 . 15 20 Largest 2 | 2 2 2 . 2 2 Hottest 70 | 60 70 46 . 46 46 Shots Fired 191 | 40 36 48 . 29 38 Gun 191 | 40 36 48 . 29 38 Cannon . | . . . . . . Launcher . | . . . . . . Special . | . . . . . . Kinetic 166 | 28 23 48 . 29 38 Thermal 25 | 12 13 . . . . Explosive . | . . . . . . Electromagnetic . | . . . . . . Robot Hit Streak 10 | 8 8 6 . 7 10 Robot Miss Streak 3 | 3 2 3 . 2 2 Penetration Max . | . . . . . . Secondary Targets 2 | . . 2 . . . Max Gunslinging Chain 1 | . . 1 . . . Shots Hit Robots 143 | 27 22 29 . 19 46 Core Hits 64 | 9 12 18 . 8 17 Critical Kills . | . . . . . . Critical Parts Destroyed . | . . . . . . Critical Strikes 3 | . 2 . . . 1 Burn 2 | . 2 . . . . Sever 1 | . . . . . 1 Melee Attacks 26 | . . . . . 26 Impact . | . . . . . . Slashing 26 | . . . . . 26 Piercing . | . . . . . . Sneak Attacks 3 | . . . . . 3 Combat Hostiles . | . . . . . . Follow-up Attacks . | . . . . . . Damage Inflicted 2475 | 350 319 435 . 291 1080 Guns 1855 | 350 319 435 . 291 460 Cannons . | . . . . . . Explosions . | . . . . . . Melee 620 | . . . . . 620 Ramming . | . . . . . . Kinetic 1711 | 282 243 435 . 291 460 Thermal 144 | 68 76 . . . . Explosive . | . . . . . . Electromagnetic . | . . . . . . Impact . | . . . . . . Slashing 620 | . . . . . 620 Piercing . | . . . . . . Highest Corruption . | . . . . . . Average Corruption . | . . . . . . Corruption Purged . | . . . . . . Corruption Blocked . | . . . . . . Overload Shots . | . . . . . . Overflow Damage 37 | . . . . . 37 Projectiles . | . . . . . . Explosions . | . . . . . . Melee 37 | . . . . . 37 Knockbacks . | . . . . . . Impact . | . . . . . . Kinetic . | . . . . . . Secondary . | . . . . . . Self-Inflicted Damage . | . . . . . . Shots . | . . . . . . Rammed . | . . . . . . Targets Rammed . | . . . . . . Kicked . | . . . . . . Crushed . | . . . . . . Highest Temperature 316 | . 45 77 . 40 316 Average Temperature 30 | . 11 20 . 15 72 Received Heat Transfer 1206 | . 42 120 . 72 972 Siege Activations . | . . . . . . Martial Activations . | . . . . . . Shielding Activations . | . . . . . . Robots Disrupted . | . . . . . . Combat Hostiles . | . . . . . . Robots Corrupted . | . . . . . . Combat Hostiles . | . . . . . . Parts Fried . | . . . . . . Impact Corruptions . | . . . . . . Robots Melted . | . . . . . . Combat Hostiles . | . . . . . . Parts Melted 4 | . 1 . . 3 . Heat Transferred 520 | 150 370 . . . . Parts Sabotaged . | . . . . . . Parts Stolen . | . . . . . . Parts Stripped . | . . . . . . Power Chain Reactions . | . . . . . . Alert | -11 -10 -10 -10 -9 -8 ------- Run | Yrd Mat Min Exi Min Mat Maximum Alert Level 1 | . . 1 . . . Low Security (%) 96 | 100 100 82 . 100 100 Level 1 3 | . . 17 . . . Level 2 . | . . . . . . Level 3 . | . . . . . . Level 4 . | . . . . . . Level 5 . | . . . . . . High Security . | . . . . . . Max Security . | . . . . . . Peak Influence 223 | 15 132 223 . 70 108 Initial 35 | . . 35 . . 3 Average 48 | 1 41 141 . 36 28 Influence Increases 1037 | 45 254 318 . 130 290 Destroy 0b10 Robot/C 640 | . 120 260 . 100 160 Destroy 0b10 Robot/NC 80 | 45 15 . . . 20 Destroy Leader 134 | . 24 50 . 20 40 Allied During Kill 18 | . . 8 . 10 . Successful Hack 56 | . 49 . . . 7 Destroy Structure 4 | . 1 . . . 3 Lose Combat Pursuer 105 | . 45 . . . 60 Influence Decreases 975 | 45 162 237 173 120 238 Entered New Map 237 | . . 57 173 . 7 Time Decay 628 | 45 162 170 . 100 151 Lost Part 90 | . . 10 . . 80 Lost Ally 20 | . . . . 20 . Squads Dispatched 5 | . 2 . . . 3 Investigation 2 | . 1 . . . 1 Extermination . | . . . . . . Reinforcement 3 | . 1 . . . 2 Assault . | . . . . . . Garrison . | . . . . . . Intercept . | . . . . . . Searches Triggered . | . . . . . . Construction Impeded . | . . . . . . Haulers Reinforced . | . . . . . . Active Scanning Responses . | . . . . . . Cargo Convoy Interrupts . | . . . . . . Stealth | -11 -10 -10 -10 -9 -8 --------- Run | Yrd Mat Min Exi Min Mat Distress Signals 3 | . 2 . . . 1 Communications Jammed . | . . . . . . Distress Signals . | . . . . . . Times Spotted 50 | . 13 13 . 5 19 Peak Tracking Total 6 | . 5 4 . 3 6 Tactical Retreats 4 | . 1 . . . 3 Traps | -11 -10 -10 -10 -9 -8 ------- Run | Yrd Mat Min Exi Min Mat Traps Triggered 2 | . 1 . . . 1 Indirectly . | . . . . . . Trap Hack Attempts . | . . . . . . Triggered . | . . . . . . Disarmed . | . . . . . . Reprogrammed . | . . . . . . Reused . | . . . . . . Traps Extracted . | . . . . . . Installed . | . . . . . . Triggered . | . . . . . . Machines | -11 -10 -10 -10 -9 -8 ---------- Run | Yrd Mat Min Exi Min Mat Machines Disabled . | . . . . . . Max in Single Turn . | . . . . . . Machines Repaired . | . . . . . . Machines Dismantled . | . . . . . . Machines Sabotaged . | . . . . . . Overloaded Fab Kills . | . . . . . . Hacking | -11 -10 -10 -10 -9 -8 --------- Run | Yrd Mat Min Exi Min Mat Machines Accessed 13 | . 8 . 1 . 4 Terminals 11 | . 8 . . . 3 Fabricators . | . . . . . . Repair Stations 1 | . . . . . 1 Recycling Units . | . . . . . . Scanalyzers . | . . . . . . Garrison Access . | . . . . . . Total Hacks 48 | . 28 . 4 . 16 Successful 30 | . 16 . 4 . 10 Failed 18 | . 12 . . . 6 Catastrophic 3 | . 2 . . . 1 Database Lockouts . | . . . . . . Manual 27 | . 15 . . . 12 Terminals 42 | . 28 . . . 14 Fabricators . | . . . . . . Repair Stations 2 | . . . . . 2 Recycling Units . | . . . . . . Scanalyzers . | . . . . . . Garrison Access . | . . . . . . Terminal Hacks 19 | . 11 . 4 . 4 Record 4 | . . . 4 . . Part Schematic 1 | . 1 . . . . Robot Analysis 1 | . 1 . . . . Prototype ID Bank 5 | . 4 . . . 1 Branch Access Points 1 | . . . . . 1 Emergency Access Points 1 | . . . . . 1 Terminal Index 2 | . 1 . . . 1 Scanalyzer Index 1 | . 1 . . . . Locate Traps 1 | . 1 . . . . Hauler Manifests 1 | . 1 . . . . Zone Layout 1 | . 1 . . . . Fabricator Hacks . | . . . . . . Repair Station Hacks 2 | . . . . . 2 Scan Component 1 | . . . . . 1 Repair 1 | . . . . . 1 Recycling Unit Hacks . | . . . . . . Scanalyzer . | . . . . . . Garrison Access Hacks . | . . . . . . Unauthorized Hacks 9 | . 5 . . . 4 Terminals 9 | . 5 . . . 4 Botnet 7 | . 4 . . . 3 Operators 2 | . 1 . . . 1 Fabricators . | . . . . . . Repair Stations . | . . . . . . Recycling Units . | . . . . . . Scanalyzers . | . . . . . . Garrison Access . | . . . . . . Data Cores Recovered 1 | . . . . . 1 Used 1 | . . . . . 1 Hacking Detections 12 | . 8 . . . 4 Full Trace Events 1 | . 1 . . . . Feedback Events . | . . . . . . Feedback Blocked . | . . . . . . Robot Schematics Acquired . | . . . . . . Robots Built . | . . . . . . Authchips . | . . . . . . Time . | . . . . . . Total Robot Build Rating . | . . . . . . Part Schematics Acquired 1 | . 1 . . . . Parts Built . | . . . . . . Authchips . | . . . . . . Time . | . . . . . . Total Part Build Rating . | . . . . . . Parts Repaired 1 | . . . . . 1 Time 108 | . . . . . 108 Parts Recycled . | . . . . . . Recycled Matter . | . . . . . . Retrieved Matter . | . . . . . . Retrieved Components . | . . . . . . Parts Scanalyzed . | . . . . . . Part Schematics Acquired . | . . . . . . Parts Damaged . | . . . . . . Bothacking | -11 -10 -10 -10 -9 -8 ------------ Run | Yrd Mat Min Exi Min Mat Used RIF Installer . | . . . . . . Robots Hacked . | . . . . . . Non-combat . | . . . . . . Combat . | . . . . . . Robot Hacks Applied . | . . . . . . Relay Couplers Released . | . . . . . . Fabnet Peak Effective % . | . . . . . . Robots Rewired . | . . . . . . Allies Hacked . | . . . . . . Hacks Repelled . | . . . . . . Allies | -11 -10 -10 -10 -9 -8 -------- Run | Yrd Mat Min Exi Min Mat Total Allies 3 | . . 3 . . . Largest Group 3 | . . 3 3 3 1 Highest-Rated Group 40 | . . 40 40 40 16 Highest-Rated Ally 16 | . . 16 16 16 16 Total Orders . | . . . . . . Ally Attacks 25 | . . . . 15 10 Total Damage 295 | . . . . 192 103 Kills 3 | . . . . 3 . Allies Corrupted . | . . . . . . Allies Melted . | . . . . . . Intel | -11 -10 -10 -10 -9 -8 ------- Run | Yrd Mat Min Exi Min Mat Active Infowar (turns) . | . . . . . . Robot Analysis Total 1 | . 1 . . . . Derelict Logs Recovered 1 | . . 1 . . . Drone Launches . | . . . . . . Drone Recoveries . | . . . . . . Exploration | -11 -10 -10 -10 -9 -8 ------------- Run | Yrd Mat Min Exi Min Mat Turns Passed 2201 | 313 559 350 184 201 594 Spaces Moved 1607 | 243 528 235 180 140 281 Core 7 | 6 . . . . 1 Treads 150 | . . 19 . . 131 Legs . | . . . . . . Wheels 1450 | 237 528 216 180 140 149 Hover . | . . . . . . Flight . | . . . . . . Fastest Speed 50 | 50 80 95 95 95 95 Average Speed 97 | 79 83 100 95 95 138 Slowest Speed 400 | 80 95 160 95 95 400 Overloaded Moves . | . . . . . . Propulsion Burnouts . | . . . . . . Robots Hopped . | . . . . . . Potential Cave-ins . | . . . . . . Cave-ins Triggered . | . . . . . . Exploration Rate (%) 43 | 6 96 41 58 37 23 Regions Visited 5 Branch Regions 3 Pre-discovered Areas 1 | . . . 1 . . Known Exits Taken . | . . . . . . Unknown Exits Taken 5 | 1 1 1 1 1 . Scrap Searched 2 | . . . . 2 . Spaces Dug 2 | . . . . . 2 Terrain Destroyed 2 | . . . . . 2 Melee 2 | . . . . . 2 Projectile . | . . . . . . AOE . | . . . . . . Terrain Rammed . | . . . . . . Walls Destroyed . | . . . . . . Machines Disabled . | . . . . . . Actions | -11 -10 -10 -10 -9 -8 --------- Run | Yrd Mat Min Exi Min Mat Total 2037 | 319 612 310 192 184 420 Wait 242 | 38 46 49 13 25 71 Move 1602 | 242 527 234 179 139 281 Hop . | . . . . . . Pick Up 15 | 4 6 . . 1 4 Fast Attach 15 | 6 5 . . . 4 Attach 7 | . . 1 . . 6 Detach 6 | . 2 . . . 4 Swap 6 | 1 1 1 . 2 1 Drop 12 | . 6 1 . 2 3 Fire 106 | 28 19 24 . 15 20 Melee 26 | . . . . . 26 Ram . | . . . . . . Kick . | . . . . . . Crush . | . . . . . . Escape Stasis . | . . . . . . Rewire . | . . . . . . Trap . | . . . . . . Miscellaneous . | . . . . . . Route ------- -11/Scrapyard -10/Materials (discovered 4 exits: [*Mat x3] / [*Min]) -10/Mines (discovered 2 exits: [*Mat] / *Exi) -10/Exiles -9/Mines -8/Materials History --------- Turn | Location | Event 32 | -11/Scrapyard | Discovered new exit (range 15) 314 | -11/Scrapyard | Entered Materials 315 | -10/Materials | Build established: Mutant 315 | -10/Materials | Met a group of wandering Federalists 532 | -10/Materials | Discovered new exit (range 11) 636 | -10/Materials | Discovered new exit (range 7) 733 | -10/Materials | Discovered new exit (range 9) 777 | -10/Materials | Discovered new exit (range 16) 873 | -10/Materials | Entered Mines 1027 | -10/Mines | Discovered new exit (range 5) 1076 | -10/Mines | Assisted by bots powering up and referring to "LRC-V3" 1186 | -10/Mines | Assembled infested the area 1186 | -10/Mines | Learned Materials stockpile data 1193 | -10/Mines | Deemed a non-threat by the Exiles lab entrance 1193 | -10/Mines | Discovered new exit (range 5) 1223 | -10/Mines | Entered Exiles 1223 | -10/Exiles | Accompanied by 3 allies 1249 | -10/Exiles | Met 8R-AWN 1262 | -10/Exiles | Met EX-HEX 1304 | -10/Exiles | Learned location of Zion (-6) 1306 | -10/Exiles | Met EX-DEC 1383 | -10/Exiles | Discovered new exit (range 14) 1407 | -10/Exiles | Entered Mines 1407 | -9/Mines | Accompanied by 3 allies 1451 | -9/Mines | Found a hidden stash of uninstalled traps 1553 | -9/Mines | Found a damaged Exp. Sensor Array with a note attached 1555 | -9/Mines | Found Prototype Device 1591 | -9/Mines | Received a Rocket Launcher from a helpful Derelict 1596 | -9/Mines | Discovered new exit (range 10) 1608 | -9/Mines | Entered Materials 1608 | -8/Materials | Accompanied by 1 ally 1608 | -8/Materials | Evolved 4 slots: Utility x4 1608 | -8/Materials | Identified Exp. Sensor Array 2000 | -8/Materials | Lost 4 parts (1n1u2w) 2031 | -8/Materials | Repaired Faulty Exp. Sensor Array 2187 | -8/Materials | Core integrity fell below 50% 2199 | -8/Materials | Core integrity fell below 20% 2202 | -8/Materials | Destroyed by G-47 Trooper with Particle Gun Last Messages --------------- 02132_ Acquired Lgt. Armor Plating. 02158_ Lgt. Treads destroyed. 02164_ G-47 Trooper destroyed. 02170_ Critical hit (Burn: +37). 02171_ Lgt. Armor Plating destroyed. 02172_ Nuclear Core destroyed. 02172_ Critical hit (Burn: +37). 02175_ Autogun destroyed. 02176_ Lgt. Treads destroyed. 02177_ G-47 Trooper destroyed. 02182_ Destroyed Lgt. Angular Momentum Engine. 02183_ K-01 Serf collects debris. 02184_ Hacking Suite destroyed. 02187_ K-01 Serf collects debris. 02190_ Critical hit (Burn: +37). 02190_ K-01 Serf cleans the Terminal. 02192_ Critical hit (Burn: +37). 02193_ K-01 Serf cleans the Terminal. 02197_ Critical hit (Burn: +37). 02201_ K-01 Serf collects debris. Map ----- +----------------------------------------------------+ | ???????????????????????#[[= # !/ #??? | | ???????????????????????#[= # #??? | | ??????????+????????????#[= ?# #??? | | ???????????????????????# ?# #??? | | ???????????????????????# ??# #??? | | ???????????????????????# ??# #??? | | ???????????????????????# ???# ####+#### | | +??????o???????????????###???# # [ # | | # ??????????????????########## # % # | | # ???????????????? + # | | # ?????????????????????# # ]# | | # ?????????????????????# T # # | | # ??################### ######### | | # ??# """ ## # ##??????? | | # ?# "T" ## """# #??????? | | # ?# ## R"# #??????? | | # # =* ! ## """# +??????? | | # ####/####### # #### #??????? | | # % %/ * # #??# #??????? | | # #### ##### ########+#### ##??????? | | # ???# #???#%#????# u # #???????? | | #### ????# #???#=#????# *# #???????? | | ???# ????# #???#=#????# "" # #???????? | | ???#?????# #####+##???# "T kg# #???????? | | ?????????# # *!%#???# ""g g# #???????? | | ?????????# # ]*[=#???#[=@%!g# #???????? | | ?????????# # #?########/# #???????# | | ?????????# / """ #?# % +%* +?????? ? | | ?????????# # """ #?# #/ #????? ?? | | ?????????#%# """ #?# # #???? ?? | | ?????????# ########## # #???? ??? | | ?????????# #????# # # #??? ???? | | ?????????# ###### # # #?? ????? | | ?????????# [ / ######## ##+#????? | | ???????###### ### # # ## #####? | | ???????# # #?# # """ # !!#? | | ???????# "" # #?# # """ + !#? | | ???????# Y" # #?# #] """ # #### !!#? | | ???????# "" # #####+# # ###+##### !!#? | | ???????# + + ! # # ! ## !!#? | | ???????# # ######## # ## !!#? | | ???????# # ######## # ** ######? | | ???????# # # *** !#?????? | | ???????# ! ################## *** #?????? | | ???????######????????????????# =#?????? | | ?????????????????????????????########?????? | | ??????????????????????????????????????????? | | ??????????????????????????????????????????? | | ??????????????????????????????????????????? | | ??????????????????????????????????????????? | +----------------------------------------------------+ Best States ------------- Heat Dissipation 31 Energy Generation 14 Energy Capacity 250 Matter Stores 300 Matter Capacity 300 Sight Range 16 Terrain Scan Density 10 Armor Coverage 150 Evasion (%) 44 Targeting Accuracy 5 Recoil Reduction 2 Salvage Targeting 1 Offensive Hacking 10 Item Schematics ----------------- Lrg. Storage Unit | -10/Materials | Hacked Robot Schematics ------------------ None Fabricated ------------ Nothing Repaired ---------- Exp. Sensor Array | 62% | -8/Materials Alien Tech Used ----------------- None Achievements -------------- None Challenges ------------ None Game ------ Seed ImpactModifiedShield Manual? 0 Play Time 00:27:54 Cumulative 215.8 hours Start 2025.05.16 @ 19:22:34 End 2025.05.16 @ 19:50:03 Sessions 1 Manual Loads 0 Difficulty Rogue Special Mode None Game No. 169 Rogue 169 Adventurer 0 Explorer 0 Win Type - Total 6 Types 4/0/1/1/0/0/0/0/0/0 Lore% 71 Gallery% 66 Achievement% 55 Wizard Run 0 Options --------- Layout 2 ASCII 0 Keyboard 0 Movement Numpad Keybinds 0 Fullscreen 1 Font 16/Terminus Map View 55x47 Zoom Use 0% Tactical HUD 1 Map Filters NONE Filters NONE Steam 1 RUN: 9d175c4f-9923-4371-92be-78a5150b23c1